bitfinex-derivatives/quotes_BTCF0:USTF0_20241221
["timestamp","ask_amount","ask_price","bid_price","bid_amount"]
[1734808408716,0.00010602,97086.0,97083.0,0.05152]
[1734808409813,0.00110602,97086.0,97076.0,0.051524]
[1734808410019,0.3608,97077.0,97069.0,0.01361641]
[1734808410216,0.00110602,97086.0,97077.0,0.051523]
[1734808410532,0.00110602,97086.0,97084.0,0.051519]
[1734808410917,0.36190602,97086.0,97084.0,0.051519]
[1734808411427,0.00310602,97086.0,97084.0,0.412319]
[1734808411727,0.00510602,97086.0,97084.0,0.412319]
[1734808413129,0.00210602,97086.0,97084.0,0.412319]
[1734808413427,0.00310602,97086.0,97084.0,0.412319]
[1734808414126,0.00210602,97086.0,97084.0,0.413319]
[1734808414327,0.00010602,97086.0,97084.0,0.415319]
[1734808414729,0.00010602,97086.0,97084.0,0.413319]
[1734808414930,0.00010602,97086.0,97084.0,0.420319]
[1734808417334,0.0908694,97126.0,97084.0,0.3688]
[1734808417531,0.0908694,97126.0,97105.0,0.3608]
[1734808417829,0.0908694,97126.0,97112.0,0.051504]
[1734808418134,0.3608,97122.0,97105.0,0.3608]
[1734808418316,0.051501,97118.0,97105.0,0.3608]
[1734808418832,0.051501,97118.0,97105.0,0.3618]
[1734808419828,0.051501,97118.0,97105.0,0.413308]
[1734808420133,0.051501,97118.0,97112.0,0.001]
[1734808420330,0.054501,97118.0,97112.0,0.001]
[1734808420534,0.054501,97118.0,97105.0,0.36212]
[1734808420535,0.003,97118.0,97105.0,0.3608]
[1734808420749,0.051506,97110.0,97105.0,0.001]
[1734808421234,0.3608,97112.0,97110.0,0.051505]
[1734808421431,0.005,97118.0,97117.0,0.051502]
[1734808421631,0.003,97118.0,97117.0,0.051502]
[1734808422433,0.0358,97128.0,97121.0,0.051499]
[1734808423025,0.0358,97128.0,97122.0,0.051499]
[1734808423228,0.0358,97128.0,97126.0,0.051497]
[1734808423735,0.3608,97133.0,97128.0,0.051496]
[1734808425033,0.3638,97133.0,97128.0,0.051496]
[1734808425623,0.3608,97133.0,97128.0,0.051496]
[1734808425828,0.3638,97133.0,97128.0,0.051496]
[1734808426540,0.3658,97133.0,97128.0,0.052496]
[1734808427236,0.3628,97133.0,97128.0,0.001]
[1734808427433,0.417294,97133.0,97128.0,0.001]
[1734808427933,0.3658,97133.0,97128.0,0.001]
[1734808428625,0.3658,97133.0,97128.0,0.052496]
[1734808429133,0.09093347,97130.0,97128.0,0.052496]
[1734808429533,0.14242847,97130.0,97128.0,0.001]
[1734808429727,0.00850579,97129.0,97128.0,0.001]
[1734808430431,0.01548,97129.0,97128.0,0.001]
[1734808431040,0.0515,97121.0,97115.0,0.051503]
[1734808431341,0.3608,97116.0,97115.0,0.051503]
[1734808432025,0.3949,97116.0,97115.0,0.051503]
[1734808433141,0.051503,97115.0,97109.0,0.051506]
[1734808433341,0.3959,97116.0,97109.0,0.051506]
[1734808433640,0.051504,97113.0,97109.0,0.051506]
[1734808434139,0.051504,97113.0,97110.0,0.051505]
[1734808434438,0.48717541,97116.0,97097.0,0.0129606]
[1734808434736,0.09127541,97111.0,97097.0,0.0129606]
[1734808434928,0.09127541,97111.0,97110.0,0.051506]
[1734808435432,0.09127541,97111.0,97110.0,0.412306]
[1734808435634,0.09127541,97111.0,97110.0,0.447206]
[1734808435937,0.09127541,97112.0,97110.0,0.447206]
[1734808436133,0.09127541,97112.0,97110.0,0.68247635]
[1734808436644,0.09127541,97112.0,97110.0,0.68347635]
[1734808437031,0.09127541,97112.0,97110.0,0.68547635]
[1734808437231,0.3608,97122.0,97110.0,0.4037]
[1734808437432,0.3608,97122.0,97110.0,0.3688]
[1734808437632,0.0857,97121.0,97110.0,0.3658]
[1734808438139,0.0342,97121.0,97110.0,0.005]
[1734808438332,0.051502,97117.0,97110.0,0.005]
[1734808439226,0.051502,97117.0,97108.0,0.051507]
[1734808439430,0.3608,97113.0,97110.0,0.003]
[1734808439632,0.051505,97111.0,97110.0,0.003]
[1734808439838,0.07019712,97111.0,97110.0,0.001]
[1734808440534,0.07019712,97111.0,97110.0,0.005]
[1734808440735,0.051514,97094.0,97091.0,0.18378015]
[1734808440931,0.01017957,97093.0,97091.0,0.23529515]
[1734808441133,0.07020712,97092.0,97084.0,0.051519]
[1734808441342,0.3608,97087.0,97084.0,0.051519]
[1734808441644,0.01869212,97086.0,97084.0,0.051519]
[1734808441828,0.01869212,97085.0,97084.0,0.051519]
[1734808443262,0.01869212,97085.0,97084.0,0.058519]
[1734808443538,0.01969212,97085.0,97084.0,0.067519]
[1734808443950,0.01117957,97085.0,97084.0,0.067519]
[1734808444136,0.01969212,97085.0,97084.0,0.067519]
[1734808444538,0.01117957,97085.0,97084.0,0.016]
[1734808445737,0.01217957,97085.0,97084.0,0.009]
[1734808446143,0.01217957,97085.0,97073.0,0.0345]
[1734808446345,0.01517957,97085.0,97080.0,0.051521]
[1734808446533,0.005,97085.0,97080.0,0.051521]
[1734808446735,0.01017957,97084.0,97080.0,0.051521]
[1734808447543,0.01866875,97083.0,97073.0,0.0365]
[1734808447737,0.07018875,97082.0,97074.0,0.051525]
[1734808447933,0.01017957,97081.0,97074.0,0.051525]
[1734808448133,0.01017957,97080.0,97074.0,0.051525]
[1734808448336,0.05152,97082.0,97074.0,0.051525]
[1734808448942,0.05152,97082.0,97074.0,0.053525]
[1734808449843,0.05152,97082.0,97074.0,0.055525]
[1734808451952,0.4521652,97088.0,97074.0,0.004]
[1734808452156,0.051522,97080.0,97074.0,0.004]
[1734808452541,0.051522,97080.0,97074.0,0.055524]
[1734808453053,0.3608,97088.0,97074.0,0.053524]
[1734808453354,0.051518,97087.0,97074.0,0.053524]
[1734808453541,0.051523,97078.0,97074.0,0.002]
[1734808453739,0.051523,97078.0,97072.0,0.16619352]
[1734808454144,0.051523,97077.0,97072.0,0.16619352]
[1734808454339,0.3608,97078.0,97072.0,0.1528511]
[1734808454541,0.01017957,97077.0,97060.0,0.1528511]
[1734808454850,0.05153,97064.0,97060.0,0.1528511]
[1734808455253,0.41233,97064.0,97060.0,0.1528511]
[1734808455452,0.41233,97064.0,97055.0,0.0348]
[1734808455650,0.41233,97064.0,97062.0,0.00654529]
[1734808455954,0.41333,97064.0,97062.0,0.01554529]
[1734808456153,0.05253,97064.0,97062.0,0.01554529]
[1734808456346,0.05253,97064.0,97062.0,0.01054529]
[1734808456656,0.05253,97064.0,97062.0,0.01554529]
[1734808463868,0.05253,97064.0,97062.0,0.06707629]
[1734808464353,0.001,97064.0,97062.0,0.06707629]
[1734808464557,0.001,97064.0,97062.0,0.42787629]
[1734808464760,0.001,97064.0,97063.0,0.0727]
[1734808465864,0.001,97064.0,97063.0,0.005]
[1734808466167,0.001,97064.0,97063.0,0.014]
[1734808467464,0.44387081,97064.0,97063.0,0.014]
[1734808467674,0.48953467,97064.0,97063.0,0.014]
[1734808467872,0.50247227,97064.0,97063.0,0.014]
[1734808468068,0.051535,97055.0,97054.0,9.463e-05]
[1734808468370,0.43106967,97055.0,97054.0,9.463e-05]
[1734808468870,0.42280861,97055.0,97054.0,9.463e-05]
[1734808469068,0.43125084,97055.0,97054.0,9.463e-05]
[1734808469272,0.50163234,97055.0,97054.0,0.00409463]
[1734808469771,0.50163234,97055.0,97054.0,0.00709463]
[1734808470369,0.13238448,97055.0,97054.0,0.00709463]
[1734808470561,0.16203641,97060.0,97059.0,0.051533]
[1734808470762,0.15155579,97060.0,97059.0,0.051533]
[1734808471775,0.16203641,97060.0,97054.0,0.00709463]
[1734808471961,0.3608,97063.0,97054.0,0.00409463]
[1734808471962,0.3608,97055.0,97054.0,0.00409463]
[1734808472165,0.3797446,97055.0,97054.0,0.00409463]
[1734808472870,0.3797446,97055.0,97054.0,9.463e-05]
[1734808474384,0.3797446,97055.0,97054.0,0.05162963]
[1734808474573,0.3797446,97055.0,97054.0,0.05462963]
[1734808474780,0.01048062,97055.0,97054.0,0.05662963]
[1734808475379,0.01895328,97055.0,97054.0,0.05462963]
[1734808475576,0.01895328,97055.0,97054.0,0.05662963]
[1734808476283,0.09154639,97055.0,97054.0,0.06967642]
[1734808477570,0.01048062,97059.0,97058.0,0.051533]
[1734808477772,0.01895683,97062.0,97058.0,0.051533]
[1734808477970,0.01857411,97061.0,97058.0,0.051533]
[1734808478173,0.01857411,97060.0,97058.0,0.051533]
[1734808478374,0.01008607,97059.0,97058.0,0.051533]
[1734808478576,0.01957411,97059.0,97054.0,0.01314142]
[1734808478889,0.004,97059.0,97058.0,0.051533]
[1734808479087,0.001,97059.0,97058.0,0.051533]
[1734808479985,0.09154639,97062.0,97061.0,0.051532]
[1734808480182,0.09160437,97070.0,97065.0,0.051529]
[1734808480378,0.09160437,97070.0,97069.0,0.051527]
[1734808481491,0.001,97070.0,97069.0,0.058527]
[1734808481877,0.001,97070.0,97069.0,0.051527]
[1734808482079,0.01002454,97073.0,97069.0,0.007]
[1734808482280,0.01852065,97079.0,97077.0,0.051523]
[1734808482480,0.48284971,97081.0,97077.0,0.051523]
[1734808482481,0.01852065,97078.0,97077.0,0.051523]
[1734808483192,0.01852713,97078.0,97077.0,0.051523]
[1734808483784,0.01003102,97078.0,97077.0,0.051523]
[1734808483987,0.01852713,97080.0,97075.0,0.3608]
[1734808484192,0.01854322,97079.0,97075.0,0.3608]
[1734808484490,0.01854882,97081.0,97080.0,0.051521]
[1734808484691,0.01004373,97081.0,97080.0,0.051521]
[1734808485082,0.01854882,97083.0,97080.0,0.051521]
[1734808485279,0.01854882,97085.0,97075.0,0.3608]
[1734808485476,0.12204971,97086.0,97075.0,0.3608]
[1734808485477,0.12204971,97086.0,97075.0,0.37421165]
[1734808485686,0.1305614,97088.0,97087.0,0.051518]
[1734808485883,0.12204971,97088.0,97087.0,0.051518]
[1734808486087,0.09530497,97088.0,97087.0,0.051518]
[1734808486291,0.02940497,97088.0,97087.0,0.051518]
[1734808486593,0.02540497,97088.0,97087.0,0.09028471]
[1734808486785,0.02140497,97088.0,97087.0,0.09028471]
[1734808487186,0.15155579,97094.0,97087.0,0.09028471]
[1734808487388,0.15155579,97094.0,97093.0,0.412315]
[1734808487688,0.0701,97118.0,97093.0,0.3608]
[1734808487888,0.0701,97118.0,97107.0,0.3608]
[1734808488084,0.0701,97118.0,97117.0,0.051502]
[1734808488386,0.035,97118.0,97117.0,0.051502]
[1734808488986,0.0377,97127.0,97116.0,0.3608]
[1734808489293,0.017,97118.0,97117.0,0.28713054]
[1734808489486,0.017,97118.0,97117.0,0.051502]
[1734808490491,0.008,97118.0,97117.0,0.051502]
[1734808490691,0.017,97118.0,97117.0,0.052502]
[1734808490892,0.009,97118.0,97117.0,0.052502]
[1734808491089,0.011,97118.0,97117.0,0.052502]
[1734808491294,0.002,97118.0,97117.0,0.051502]
[1734808491600,0.007,97118.0,97117.0,0.051502]
[1734808491785,0.007,97118.0,97117.0,0.06394875]
[1734808498595,0.035,97136.0,97135.0,0.051492]
[1734808500101,0.044,97136.0,97135.0,0.052492]
[1734808500792,0.049,97136.0,97135.0,0.052492]
[1734808501603,0.049,97136.0,97129.0,0.3608]
[1734808501801,0.3608,97133.0,97110.0,0.15266461]
[1734808502402,0.3608,97133.0,97124.0,0.051498]
[1734808502602,0.3608,97133.0,97116.0,0.37332203]
[1734808503093,0.3628,97133.0,97125.0,0.051497]
[1734808503298,0.3628,97133.0,97120.0,0.15266461]
[1734808503497,0.3608,97133.0,97129.0,0.051495]
[1734808503701,0.3628,97133.0,97129.0,0.051495]
[1734808504202,0.3678,97133.0,97125.0,0.001]
[1734808504502,0.007,97133.0,97131.0,0.051494]
[1734808505504,0.007,97133.0,97132.0,0.3608]
[1734808505709,0.014,97133.0,97132.0,0.3608]
[1734808506201,0.037,97144.0,97143.0,0.051488]
[1734808506396,0.0379,97151.0,97150.0,0.051484]
[1734808506904,0.0379,97151.0,97143.0,0.413608]
[1734808506905,0.0371,97171.0,97169.0,0.051474]
[1734808507100,0.0379,97170.0,97169.0,0.051474]
[1734808508005,0.0379,97170.0,97157.0,0.3608]
[1734808508400,0.0379,97170.0,97158.0,0.05148]
[1734808508708,0.0379,97170.0,97157.0,0.3608]
[1734808508709,0.0379,97170.0,97161.0,0.051478]
[1734808509212,0.0379,97170.0,97169.0,0.001]
[1734808509503,0.0419,97170.0,97169.0,0.002]
[1734808509693,0.0781,97170.0,97169.0,0.001]
[1734808510102,0.0741,97170.0,97161.0,0.001]
[1734808510308,0.0741,97170.0,97157.0,0.3608]
[1734808510309,0.3608,97163.0,97157.0,0.05148]
[1734808510602,0.3608,97163.0,97161.0,0.051478]
[1734808512007,0.0741,97170.0,97169.0,0.051474]
[1734808513505,0.0781,97170.0,97169.0,0.053474]
[1734808518612,0.0419,97170.0,97169.0,0.053474]
[1734808519519,0.004,97170.0,97169.0,0.414274]
[1734808519713,0.0408,97182.0,97181.0,0.051468]
[1734808521011,0.0408,97182.0,97174.0,0.051471]
[1734808521312,0.3608,97177.0,97169.0,0.001]
[1734808521513,0.3608,97177.0,97157.0,0.18437091]
[1734808521710,0.051477,97164.0,97157.0,0.18437091]
[1734808521900,0.3608,97159.0,97157.0,0.18437091]
[1734808522104,0.09228,97158.0,97157.0,0.12207091]
[1734808522411,0.09228,97158.0,97149.0,0.0015439]
[1734808522412,0.051484,97151.0,97149.0,0.0015439]
[1734808522608,0.3608,97150.0,97144.0,0.051487]
[1734808522909,0.051487,97146.0,97144.0,0.051487]
[1734808523115,0.051488,97144.0,97143.0,0.1842335]
[1734808523618,0.051488,97144.0,97143.0,0.1219335]
[1734808523818,0.3,97144.0,97122.0,0.00132]
[1734808524006,0.3608,97127.0,97112.0,0.051504]
[1734808524209,0.051503,97115.0,97104.0,0.051508]
[1734808524408,0.3608,97111.0,97104.0,0.051508]
[1734808524721,0.051506,97110.0,97104.0,0.051508]
[1734808525016,0.3608,97111.0,97109.0,0.051506]
[1734808525213,0.00011095,97110.0,97098.0,0.24582788]
[1734808525418,0.00011095,97110.0,97087.0,0.038]
[1734808525419,0.3608,97103.0,97087.0,0.038]
[1734808525604,0.3608,97103.0,97100.0,0.05151]
[1734808526113,0.3608,97103.0,97101.0,0.05151]
[1734808528217,0.3618,97103.0,97101.0,0.05151]
[1734808528619,0.3608,97103.0,97101.0,0.05651]
[1734808528820,0.3618,97103.0,97101.0,0.06551]
[1734808531611,0.3618,97103.0,97101.0,0.014]
[1734808532012,0.0407,97102.0,97082.0,0.05152]
[1734808532217,0.051514,97094.0,97076.0,0.39972]
[1734808532418,0.3608,97088.0,97076.0,0.00132]
[1734808532619,0.3608,97079.0,97075.0,0.00011311]
[1734808533527,0.3608,97079.0,97053.0,0.0378]
[1734808533528,0.00010252,97078.0,97020.0,0.30025773]
[1734808533715,0.3608,97062.0,97049.0,0.133447]
[1734808533916,0.3608,97054.0,97049.0,0.08191]
[1734808534425,0.3608,97054.0,97053.0,0.051536]
[1734808534922,0.3608,97062.0,97053.0,0.051536]
[1734808535120,0.3608,97062.0,97049.0,0.08191]
[1734808535325,0.3608,97062.0,97054.0,0.051535]
[1734808537019,0.3608,97062.0,97049.0,0.08891]
[1734808537020,0.3608,97062.0,97050.0,0.051537]
[1734808537922,0.3608,97062.0,97049.0,0.08191]
[1734808537923,0.051535,97056.0,97054.0,0.001]
[1734808538519,0.051535,97056.0,97050.0,0.002]
[1734808538828,0.051536,97054.0,97050.0,0.002]
[1734808539226,0.051536,97054.0,97050.0,0.003]
[1734808540228,0.051536,97054.0,97050.0,0.001]
[1734808540622,0.3608,97052.0,97050.0,0.006]
[1734808540919,0.3608,97052.0,97050.0,0.057537]
[1734808541220,0.3608,97052.0,97050.0,0.061537]
[1734808541931,0.3618,97052.0,97050.0,0.01]
[1734808543627,0.3618,97052.0,97051.0,0.051537]
[1734808543929,0.001,97052.0,97051.0,0.051537]
[1734808544229,0.3608,97075.0,97050.0,0.01]
[1734808544530,0.3608,97075.0,97052.0,0.051536]
[1734808544731,0.3608,97075.0,97051.0,0.004]
[1734808544926,0.3608,97075.0,97065.0,0.051529]
[1734808545548,0.3648,97075.0,97065.0,0.051529]
[1734808545932,0.3648,97075.0,97066.0,0.051528]
[1734808546136,0.3648,97075.0,97051.0,0.004]
[1734808546429,0.416324,97075.0,97063.0,0.05153]
[1734808547022,0.3608,97067.0,97065.0,0.001]
[1734808547223,0.009,97075.0,97066.0,0.051529]
[1734808547627,0.004,97075.0,97068.0,0.051528]
[1734808547938,0.003,97075.0,97068.0,0.051528]
[1734808548240,0.003,97075.0,97055.0,0.3608]
[1734808548456,0.003,97075.0,97070.0,0.051527]
[1734808548624,0.3608,97076.0,97070.0,0.051527]
[1734808549026,0.051527,97070.0,97061.0,0.051531]
[1734808549228,0.3608,97076.0,97065.0,0.051529]
[1734808549426,0.003,97075.0,97065.0,0.051529]
[1734808549839,0.003,97075.0,97055.0,0.3608]
[1734808550244,0.002,97070.0,97069.0,0.051527]
[1734808550934,0.005,97075.0,97064.0,0.3608]
[1734808551237,0.3608,97076.0,97073.0,0.051525]
[1734808552239,0.3608,97076.0,97074.0,0.051524]
[1734808553246,0.3618,97076.0,97074.0,0.051524]
[1734808553440,0.3668,97076.0,97074.0,0.051524]
[1734808553742,0.006,97076.0,97074.0,0.051524]
[1734808556744,0.006,97076.0,97064.0,0.37282073]
[1734808556931,0.006,97076.0,97067.0,0.051528]
[1734808557140,0.3608,97070.0,97050.0,0.0383]
[1734808557442,0.051536,97054.0,97051.0,0.051537]
[1734808557844,0.3608,97059.0,97050.0,0.0383]
[1734808558138,0.3608,97059.0,97051.0,0.051537]
[1734808558347,0.3608,97059.0,97058.0,0.051533]
[1734808559439,0.001,97054.0,97051.0,0.014]
[1734808559634,0.001,97054.0,97053.0,0.3608]
[1734808560059,0.12083253,97060.0,97053.0,0.3608]
[1734808560237,0.001,97059.0,97058.0,0.058533]
[1734808560745,0.12083253,97060.0,97058.0,0.058533]
[1734808560746,0.12083253,97060.0,97058.0,0.051533]
[1734808560951,0.12083253,97070.0,97053.0,0.37112]
[1734808561246,0.12083253,97070.0,97065.0,0.051529]
[1734808562336,0.002,97070.0,97058.0,0.005]
[1734808562649,0.002,97070.0,97069.0,0.051527]
[1734808562947,0.007,97070.0,97053.0,0.3608]
[1734808563148,0.007,97070.0,97053.0,0.37254796]
[1734808563648,0.002,97070.0,97066.0,0.051529]
[1734808563847,0.3608,97067.0,97053.0,0.37254796]
[1734808564143,0.3608,97057.0,97053.0,0.004]
[1734808564948,0.3608,97054.0,97053.0,0.004]
[1734808565135,0.36092924,97054.0,97053.0,0.004]
[1734808565336,0.41246424,97054.0,97053.0,0.007]
[1734808565643,0.41246424,97054.0,97053.0,0.008]
[1734808566046,0.41246424,97054.0,97049.0,0.08191]
[1734808566047,0.72418042,97054.0,97049.0,0.08191]
[1734808566440,0.72418042,97054.0,97027.0,0.06507333]
[1734808566441,0.23533375,97041.0,97027.0,0.01352333]
[1734808566645,0.412349,97028.0,97011.0,0.051558]
[1734808566848,0.412349,97028.0,97014.0,0.051556]
[1734808568246,0.412349,97028.0,97017.0,0.051555]
[1734808568749,0.414349,97028.0,97017.0,0.051555]
[1734808569047,0.414349,97028.0,97008.0,0.01197566]
[1734808569048,0.05011068,97027.0,97008.0,0.01197566]
[1734808569250,0.05011068,97027.0,97019.0,0.051554]
[1734808569645,0.05011068,97027.0,97008.0,0.01197566]
[1734808569851,0.05011068,97027.0,97021.0,0.051552]
[1734808570243,0.002,97027.0,97008.0,0.01197566]
[1734808570552,0.002,97027.0,97025.0,0.05155]
[1734808571141,0.05355,97027.0,97002.0,0.3608]
[1734808571549,0.05355,97027.0,97011.0,0.051558]
[1734808571747,0.05355,97027.0,97004.0,0.01204981]
[1734808571748,0.05155,97027.0,97026.0,0.00112097]
[1734808571949,0.05155,97027.0,97026.0,0.00212097]
[1734808572343,0.05155,97027.0,97026.0,0.00112097]
[1734808572539,0.05355,97027.0,97026.0,0.00112097]
[1734808573449,0.05355,97027.0,97026.0,0.00012097]
[1734808575254,0.002,97027.0,97026.0,0.00012097]
[1734808577060,0.002,97027.0,97026.0,0.00112097]
[1734808577953,0.3608,97035.0,97026.0,0.09377097]
[1734808578156,0.3608,97035.0,97026.0,0.04222097]
[1734808578356,0.41235,97027.0,97026.0,0.00212097]
[1734808579163,0.4124418,97027.0,97026.0,0.00112097]
[1734808579856,0.4124418,97027.0,97002.0,0.3608]
[1734808579857,0.3628918,97027.0,97002.0,0.3608]
[1734808580058,0.3608,97017.0,97010.0,0.051558]
[1734808580459,0.3608,97017.0,97003.0,0.0401]
[1734808580657,0.3608,97017.0,97015.0,0.051556]
[1734808581560,0.051556,97016.0,97010.0,0.005]
[1734808581768,0.051556,97016.0,97015.0,0.007]
[1734808582663,0.051558,97012.0,97010.0,0.005]
[1734808582965,0.051558,97012.0,97010.0,0.009]
[1734808584159,0.051559,97010.0,97003.0,0.0401]
[1734808584356,0.412359,97009.0,97003.0,0.0401]
[1734808584751,0.05156,97007.0,97002.0,0.051563]
[1734808585150,0.051561,97006.0,97002.0,0.051563]
[1734808585350,0.051561,97006.0,97003.0,0.009]
[1734808585565,0.051562,97004.0,97003.0,0.009]
[1734808585958,0.051563,97001.0,96997.0,0.0399]
[1734808586150,0.412363,97001.0,96986.0,0.051571]
[1734808586354,0.41248475,97001.0,96979.0,0.051575]
[1734808586554,0.412372,96985.0,96979.0,0.051575]
[1734808586761,0.3608,96985.0,96980.0,0.01173196]
[1734808586951,0.3608,96985.0,96979.0,0.051575]
[1734808587154,0.3608,96985.0,96980.0,0.051574]
[1734808587565,0.3608,96984.0,96955.0,0.24582788]
[1734808587761,0.3608,96961.0,96956.0,0.30154698]
[1734808588065,0.3608,96961.0,96960.0,0.051585]
[1734808589166,0.3618,96961.0,96960.0,0.060585]
[1734808590166,0.3628,96961.0,96960.0,0.060585]
[1734808590367,0.3628,96961.0,96960.0,0.009]
[1734808590869,0.3618,96961.0,96960.0,0.006]
[1734808591075,0.36192485,96961.0,96960.0,0.006]
[1734808592368,0.36192485,96961.0,96948.0,0.00013392]
[1734808592566,0.3608,96949.0,96948.0,0.00013392]
[1734808592967,0.3608,96949.0,96948.0,0.05172592]
[1734808593671,0.3608,96949.0,96948.0,0.05472592]
[1734808593870,0.3608,96949.0,96948.0,0.05772592]
[1734808594270,0.36192485,96961.0,96960.0,0.051585]
[1734808594585,0.48245796,96975.0,96974.0,0.051578]
[1734808594776,0.3608,96975.0,96974.0,0.051578]
[1734808595273,0.12165796,96983.0,96982.0,0.051574]
[1734808595573,0.12178911,96983.0,96982.0,0.051574]
[1734808596572,0.00013115,96983.0,96982.0,0.051574]
[1734808597391,0.00613115,96983.0,96982.0,0.052574]
[1734808597573,0.01513115,96983.0,96982.0,0.052574]
[1734808598464,0.00613115,96983.0,96982.0,0.052574]
[1734808599380,0.00113115,96983.0,96982.0,0.051574]
[1734808599969,0.00013115,96983.0,96982.0,0.001]
[1734808600168,0.00013115,96983.0,96982.0,0.052574]
[1734808600374,0.00013115,96983.0,96982.0,0.053574]
[1734808601071,0.00013115,96983.0,96982.0,0.052574]
[1734808601273,0.00013115,96983.0,96982.0,0.054574]
[1734808601675,0.3608,97000.0,96982.0,0.001]
[1734808601982,0.002,96983.0,96982.0,0.352574]
[1734808602282,0.09115675,97002.0,97001.0,0.051563]
[1734808602671,0.09123884,97002.0,97001.0,0.051563]
[1734808603375,8.209e-05,97002.0,97001.0,0.051563]
[1734808604075,0.00408209,97002.0,97001.0,0.051563]
[1734808604477,0.01208209,97002.0,97001.0,0.051563]
[1734808605573,0.01208209,97002.0,96995.0,0.01151918]
[1734808605776,0.06364509,97002.0,96980.0,0.24714788]
[1734808605981,0.06364509,97002.0,96981.0,0.051574]
[1734808605982,0.3608,96990.0,96981.0,0.051574]
[1734808608480,0.3608,96990.0,96976.0,0.01175828]
[1734808608680,0.3608,96990.0,96984.0,0.051572]
[1734808609076,0.3608,96990.0,96960.0,0.23533375]
[1734808609276,0.3608,96990.0,96988.0,0.05157]
[1734808609476,0.3658,96990.0,96988.0,0.05157]
[1734808609679,0.005,96990.0,96988.0,0.05157]
[1734808609983,0.009,96990.0,96988.0,0.05157]
[1734808610486,0.003,96990.0,96988.0,0.05157]
[1734808610687,0.003,96990.0,96988.0,0.05257]
[1734808610688,0.008,96990.0,96988.0,0.05257]
[1734808611072,0.008,96990.0,96989.0,0.11074989]
[1734808611279,8.209e-05,97002.0,96990.0,0.051569]
[1734808611479,8.209e-05,97002.0,97001.0,0.051563]
[1734808612587,0.3608,97014.0,97013.0,0.051557]
[1734808613787,0.01510066,97014.0,97013.0,0.052557]
[1734808614789,0.01510066,97014.0,97013.0,0.16313235]
[1734808614991,0.3608,97032.0,97013.0,0.41157535]
[1734808615192,0.3608,97032.0,97031.0,0.051547]
[1734808615980,0.09115675,97033.0,97031.0,0.051547]
[1734808616390,0.0399,97045.0,97044.0,0.051541]
[1734808616585,0.09115675,97046.0,97044.0,0.051541]
[1734808617994,0.3608,97056.0,97043.0,0.3608]
[1734808618183,0.3608,97056.0,97052.0,0.051536]
[1734808618390,0.3608,97056.0,97031.0,0.01]
[1734808618597,0.3608,97056.0,97054.0,0.051535]
[1734808619388,0.3668,97056.0,97054.0,0.051535]
[1734808619589,0.3678,97056.0,97052.0,0.001]
[1734808619797,0.3618,97056.0,97048.0,0.051538]
[1734808619989,0.3618,97056.0,97054.0,0.002]
[1734808620184,0.3608,97056.0,97054.0,0.002]
[1734808620383,0.3618,97056.0,97054.0,0.002]
[1734808620692,0.3618,97056.0,97042.0,0.051541]
[1734808620894,0.3608,97045.0,97042.0,0.051541]
[1734808621985,0.3608,97045.0,97044.0,0.051541]
[1734808622290,0.3628,97056.0,97053.0,0.051535]
[1734808622687,0.3608,97056.0,97053.0,0.051535]
[1734808622888,0.3608,97056.0,97047.0,0.051539]
[1734808623292,0.3608,97048.0,97047.0,0.051539]
[1734808624797,0.3688,97056.0,97035.0,0.01132252]
[1734808625001,0.3718,97056.0,97040.0,0.23533375]
[1734808625205,0.3638,97056.0,97055.0,0.051535]
[1734808625502,0.003,97048.0,97044.0,0.05154]
[1734808625691,0.003,97048.0,97034.0,0.37204604]
[1734808625692,0.3638,97048.0,97034.0,0.37340604]
[1734808625899,0.3608,97048.0,97035.0,0.002]
[1734808626194,0.3608,97048.0,97046.0,0.051539]
[1734808626401,0.0382,97064.0,97063.0,0.05153]
[1734808626595,0.0382,97064.0,97058.0,0.051533]
[1734808627100,0.412331,97062.0,97055.0,0.001]
[1734808627522,0.3608,97062.0,97055.0,0.001]
[1734808627817,0.3608,97062.0,97055.0,0.052535]
[1734808628116,0.3608,97062.0,97055.0,0.051535]
[1734808628520,0.3698,97062.0,97055.0,0.001]
[1734808628710,0.051532,97061.0,97055.0,0.001]
[1734808628906,0.3608,97056.0,97034.0,0.01151706]
[1734808629211,0.3608,97035.0,97033.0,0.051546]
[1734808631017,0.3608,97035.0,97034.0,0.001]
[1734808631719,0.3618,97035.0,97033.0,0.065546]
[1734808631919,0.3618,97035.0,97033.0,0.064546]
[1734808632237,0.3618,97035.0,97034.0,0.007]
[1734808632610,0.3608,97035.0,97033.0,0.051546]
[1734808632921,0.3608,97035.0,97034.0,0.002]
[1734808633311,1.03181188,97035.0,97017.0,0.00010776]
[1734808633512,0.7216,97018.0,96995.0,0.30728485]
[1734808633717,0.3608,97003.0,96995.0,0.30728485]
[1734808634113,0.3608,96996.0,96995.0,0.30728485]
[1734808634620,0.36088408,96996.0,96982.0,0.00154656]
[1734808634816,0.3608,96983.0,96982.0,0.00154656]
[1734808636125,0.3618,96983.0,96982.0,0.00954656]
[1734808636332,0.3618,96983.0,96982.0,0.06112056]
[1734808636630,0.001,96983.0,96982.0,0.17533792]
[1734808636934,0.36188408,96996.0,96987.0,0.051571]
[1734808637119,0.36188408,96996.0,96994.0,0.051567]
[1734808637519,0.36088408,96996.0,96994.0,0.051567]
[1734808637925,0.36088408,96996.0,96985.0,0.051572]
[1734808638129,0.3608,96988.0,96986.0,0.051571]
[1734808638733,0.3608,96988.0,96982.0,0.00154656]
[1734808639231,0.3618,96988.0,96982.0,0.00154656]
[1734808639630,0.3648,96988.0,96982.0,0.00154656]